fUSD/lending_fUSD_20240521
["ID","MTS","AMOUNT","RATE_DAILY","PERIOD"]
[327664630,1716291055354,-3088.3,0.00033095,6]
[327664631,1716291055363,-500.0,0.00033095,6]
[327664632,1716291055373,-541.58,0.00033095,6]
[327664633,1716291055383,-500.0,0.00033095,6]
[327664634,1716291055393,-857.6,0.00033095,6]
[327664635,1716291055403,-2771.03,0.00033095,6]
[327664636,1716291055412,-20774.01,0.00033095,6]
[327664637,1716291055687,-500.0,0.00033095,6]
[327664638,1716291055698,-722.94,0.00033095,6]
[327664639,1716291055708,-976.39,0.00033095,6]
[327664640,1716291055718,-517.4,0.00033095,6]
[327664641,1716291055728,-2952.08,0.00033095,6]
[327664642,1716291055738,-500.0,0.00033095,6]
[327664643,1716291055748,-2359.71,0.00033095,6]
[327664644,1716291055758,-500.0,0.00033095,6]
[327664645,1716291055768,-1971.69,0.00033095,6]
[327664646,1716291055777,-1127.28,0.00033095,6]
[327664647,1716291055787,-1229.51,0.00033095,6]
[327664648,1716291055796,-549.85,0.00033095,6]
[327664649,1716291055806,-1075.86,0.00033095,6]
[327664650,1716291055815,-1806.28,0.00033095,6]
[327664651,1716291055825,-500.0,0.00033095,6]
[327664652,1716291055834,-2374.57,0.00033095,6]
[327664653,1716291055843,-4545.76,0.00033095,6]
[327664654,1716291055853,-2269.94,0.00033095,6]
[327664655,1716291055862,-3166.66,0.00033095,6]
[327664656,1716291055871,-500.0,0.00033095,6]
[327664657,1716291055880,-500.0,0.00033095,6]
[327664658,1716291055890,-2075.28,0.00033095,6]
[327664659,1716291055899,-514.28,0.00033095,6]
[327664660,1716291055909,-52301.07,0.00033095,6]
[327664661,1716291055918,-1796.5,0.00033095,6]
[327664662,1716291055927,-500.0,0.00033095,6]
[327664663,1716291055937,-500.0,0.00033095,6]
[327664664,1716291055946,-5522.34,0.00033095,6]
[327664665,1716291055955,-500.0,0.00033095,6]
[327664666,1716291055964,-590.89,0.00033095,6]
[327664667,1716291055975,-500.0,0.00033095,6]
[327664668,1716291055984,-500.0,0.00033095,6]
[327664669,1716291055994,-500.0,0.00033095,6]
[327664670,1716291056005,-1642.84,0.00033095,6]
[327664671,1716291056015,-500.0,0.00033095,6]
[327664672,1716291056025,-1214.58,0.00033095,6]
[327664673,1716291056035,-2780.51,0.00033095,6]
[327664674,1716291056044,-500.0,0.00033095,6]
[327664675,1716291056054,-9822.52,0.00033095,6]
[327664676,1716291056063,-1043.71,0.00033095,6]
[327664677,1716291056073,-500.0,0.00033095,6]
[327664678,1716291056082,-4048.99,0.00033095,6]
[327664679,1716291056092,-1329.98,0.00033095,6]
[327664680,1716291056101,-500.0,0.00033095,6]
[327664681,1716291056110,-4258.01,0.00033095,6]
[327664682,1716291056120,-500.0,0.00033095,6]
[327664683,1716291056129,-4740.41,0.00033095,6]
[327664684,1716291056139,-500.0,0.00033095,6]
[327664685,1716291056149,-500.0,0.00033095,6]
[327664686,1716291056158,-1588.58,0.00033095,6]
[327664687,1716291056168,-159.363497,0.00033151,14]
[327664688,1716291056178,-155.27383007,0.00033155,7]
[327664689,1716291056187,-500.0,0.00033203,6]
[327664690,1716291056197,-500.0,0.00033203,6]
[327664691,1716291056206,-520.83,0.00033203,6]
[327664692,1716291056216,-1056.66,0.00033203,6]
[327664693,1716291056226,-500.0,0.00033203,6]
[327664694,1716291056235,-616.0,0.00033203,6]
[327664695,1716291056244,-500.0,0.00033203,6]
[327664696,1716291056256,-500.0,0.00033203,6]
[327664697,1716291056266,-500.0,0.00033203,6]
[327664698,1716291056275,-500.0,0.00033203,6]
[327664699,1716291056284,-539.3,0.00033203,6]
[327664700,1716291056294,-579.47,0.00033203,6]
[327664701,1716291056304,-500.0,0.00033203,6]
[327664702,1716291056313,-576.73,0.00033203,6]
[327664703,1716291056323,-800.63,0.00033203,6]
[327664704,1716291056333,-500.0,0.00033203,6]
[327664705,1716291056343,-549.12619672,0.00033203,6]
[327664706,1716291056352,-500.0,0.00033203,6]
[327664707,1716291056362,-500.0,0.00033203,6]
[327664708,1716291056371,-937.76,0.00033203,6]
[327664709,1716291056381,-612.13,0.00033203,6]
[327664710,1716291056390,-511.23,0.00033203,6]
[327664711,1716291056400,-500.0,0.00033203,6]
[327664712,1716291056409,-500.0,0.00033203,6]
[327664713,1716291056420,-581.57,0.00033203,6]
[327664714,1716291056430,-597.74,0.00033203,6]
[327664715,1716291056442,-500.0,0.00033203,30]
[327664716,1716291056452,-883.63,0.00033203,6]
[327664717,1716291056463,-924.94,0.00033203,6]
[327664718,1716291056473,-500.0,0.00033203,6]
[327664719,1716291056483,-500.0,0.00033203,6]
[327664720,1716291056493,-500.0,0.00033203,6]
[327664721,1716291056502,-500.0,0.00033203,6]
[327664722,1716291056512,-987.94,0.00033203,6]
[327664723,1716291056521,-500.0,0.00033203,6]
[327664724,1716291056532,-500.0,0.00033203,6]
[327664725,1716291056541,-387.12,0.00033203,6]
[327664726,1716291056551,-500.0,0.00033203,6]
[327664727,1716291056560,-500.0,0.00033203,6]
[327664728,1716291056570,-1045.5,0.00033203,6]
[327664729,1716291056580,-751.32,0.00033203,6]
[327664730,1716291056589,-700.73,0.00033203,6]
[327664731,1716291056600,-500.0,0.00033203,6]
[327664732,1716291056612,-1091.22,0.00033203,6]
[327664733,1716291056627,-500.0,0.00033203,6]
[327664734,1716291056637,-500.0,0.00033203,6]
[327664735,1716291056648,-1245.83,0.00033203,6]
[327664736,1716291056659,-500.0,0.00033203,2]
[327664737,1716291056668,-500.0,0.00033203,6]
[327664738,1716291056678,-1292.22,0.00033203,6]
[327664739,1716291056687,-536.54,0.00033203,6]
[327664740,1716291056699,-1131.92,0.00033203,6]
[327664741,1716291056710,-795.14,0.00033203,6]
[327664742,1716291056720,-1521.49,0.00033203,6]
[327664743,1716291056732,-730.75,0.00033203,6]
[327664744,1716291056742,-603.53,0.00033203,6]
[327664745,1716291056752,-567.68,0.00033203,6]
[327664746,1716291056763,-1536.69,0.00033203,6]
[327664747,1716291056774,-500.0,0.00033203,6]
[327664748,1716291056783,-500.0,0.00033203,6]
[327664749,1716291056794,-1458.22,0.00033203,6]
[327664750,1716291056803,-207.19,0.00033203,6]
[327664751,1716291056813,-1097.6,0.00033203,6]
[327664752,1716291056822,-500.0,0.00033203,6]
[327664753,1716291056831,-546.67,0.00033203,6]
[327664754,1716291056840,-500.0,0.00033203,6]
[327664755,1716291056849,-500.0,0.00033203,6]
[327664756,1716291056859,-500.0,0.00033203,6]
[327664757,1716291056868,-796.42,0.00033203,6]
[327664758,1716291056877,-500.0,0.00033203,6]
[327664759,1716291056886,-500.0,0.00033203,6]
[327664760,1716291056895,-500.0,0.00033203,6]
[327664761,1716291056904,-1015.87,0.00033203,6]
[327664762,1716291056915,-543.73880237,0.00033203,6]
[327664763,1716291056924,-500.0,0.00033203,6]
[327664764,1716291056934,-701.98,0.00033203,6]
[327664765,1716291056943,-635.75,0.00033203,6]
[327664766,1716291056953,-500.0,0.00033203,6]
[327664767,1716291056963,-2000.0,0.00033203,6]
[327664768,1716291056972,-938.89,0.00033203,6]
[327664769,1716291056982,-723.74,0.00033203,6]
[327664770,1716291056992,-500.0,0.00033203,6]
[327664771,1716291057002,-632.17,0.00033203,6]
[327664772,1716291057013,-500.0,0.00033203,6]
[327664773,1716291057023,-500.0,0.00033203,6]
[327664774,1716291057032,-1277.94,0.00033203,6]
[327664775,1716291057042,-2417.43,0.00033203,6]
[327664776,1716291057052,-500.0,0.00033205,6]
[327664777,1716291057061,-500.0,0.00033205,6]
[327664778,1716291057071,-500.0,0.00033205,6]
[327664779,1716291057081,-500.0,0.00033205,6]
[327664780,1716291057091,-500.0,0.00033205,6]
[327664781,1716291057100,-500.0,0.00033205,6]
[327664782,1716291057110,-500.0,0.00033205,6]
[327664783,1716291057120,-500.0,0.00033205,6]
[327664784,1716291057129,-500.0,0.00033205,6]
[327664785,1716291057139,-500.0,0.00033205,6]
[327664786,1716291057149,-558.75,0.00033205,6]
[327664787,1716291057159,-500.0,0.00033205,6]
[327664788,1716291057169,-500.0,0.00033205,6]
[327664789,1716291057179,-720.94,0.00033205,6]
[327664790,1716291057189,-500.0,0.00033205,6]
[327664791,1716291057199,-814.2,0.00033205,6]
[327664792,1716291057209,-609.58,0.00033205,6]
[327664793,1716291057220,-500.0,0.00033205,6]
[327664794,1716291057229,-555.99,0.00033205,6]
[327664795,1716291057239,-500.0,0.00033205,6]
[327664796,1716291057248,-500.0,0.00033205,6]
[327664797,1716291057261,-658.46,0.00033205,6]
[327664798,1716291057270,-500.0,0.00033205,6]
[327664799,1716291057280,-500.0,0.00033205,6]
[327664800,1716291057289,-500.0,0.00033205,6]
[327664801,1716291057298,-500.0,0.00033205,6]
[327664802,1716291057308,-727.88,0.00033205,6]
[327664803,1716291057319,-624.53,0.00033205,6]
[327664804,1716291057329,-500.0,0.00033205,6]
[327664805,1716291057338,-729.98,0.00033205,6]
[327664806,1716291057348,-500.0,0.00033205,6]
[327664807,1716291057358,-500.0,0.00033205,6]
[327664808,1716291057367,-500.0,0.00033205,6]
[327664809,1716291057377,-500.0,0.00033205,6]
[327664810,1716291057386,-500.0,0.00033205,6]
[327664811,1716291057396,-500.0,0.00033205,6]
[327664812,1716291057406,-500.0,0.00033205,6]
[327664813,1716291057417,-524.21,0.00033205,6]
[327664814,1716291057428,-500.0,0.00033205,6]
[327664815,1716291057437,-636.27,0.00033205,6]
[327664816,1716291057447,-500.0,0.00033205,6]
[327664817,1716291057456,-645.16,0.00033205,6]
[327664818,1716291057465,-500.0,0.00033205,6]
[327664819,1716291057475,-593.38,0.00033205,6]
[327664820,1716291057484,-500.0,0.00033205,6]
[327664821,1716291057494,-500.0,0.00033205,6]
[327664822,1716291057505,-500.0,0.00033205,6]
[327664823,1716291057514,-587.01,0.00033205,6]
[327664824,1716291057523,-590.01,0.00033205,6]
[327664825,1716291057532,-500.0,0.00033205,6]
[327664826,1716291057541,-684.39,0.00033205,6]
[327664827,1716291057550,-725.91,0.00033205,6]
[327664828,1716291057559,-500.0,0.00033205,6]
[327664829,1716291057569,-1037.31,0.00033205,6]
[327664830,1716291057579,-677.3,0.00033205,6]
[327664831,1716291057588,-500.0,0.00033205,6]
[327664832,1716291057598,-500.0,0.00033205,6]
[327664833,1716291057609,-500.0,0.00033205,6]
[327664834,1716291057622,-522.21,0.00033205,6]
[327664835,1716291057632,-500.0,0.00033205,6]
[327664836,1716291057641,-500.0,0.00033205,6]
[327664837,1716291057651,-500.0,0.00033205,6]
[327664838,1716291057662,-500.0,0.00033205,6]
[327664839,1716291057671,-500.0,0.00033205,6]
[327664840,1716291057680,-752.52,0.00033205,6]
[327664841,1716291057690,-500.0,0.00033205,6]
[327664842,1716291057701,-609.27,0.00033205,6]
[327664843,1716291057710,-500.0,0.00033205,6]
[327664844,1716291057719,-500.0,0.00033205,6]
[327664845,1716291057729,-500.0,0.00033205,6]
[327664846,1716291057738,-500.0,0.00033205,6]
[327664847,1716291057749,-635.11,0.00033205,6]
[327664848,1716291057763,-610.04,0.00033205,6]
[327664849,1716291057773,-500.0,0.00033205,6]
[327664850,1716291057782,-671.13,0.00033205,6]
[327664851,1716291057790,-537.77,0.00033205,6]
[327664852,1716291057799,-588.72,0.00033205,6]
[327664853,1716291057808,-500.0,0.00033205,6]
[327664854,1716291057817,-500.0,0.00033205,6]
[327664855,1716291057826,-500.0,0.00033205,6]
[327664856,1716291057835,-500.0,0.00033205,6]
[327664857,1716291057845,-500.0,0.00033205,6]
[327664858,1716291057854,-904.19,0.00033205,6]
[327664859,1716291057863,-1042.11,0.00033205,6]
[327664860,1716291057872,-872.31,0.00033205,6]
[327664861,1716291057881,-500.0,0.00033205,6]
[327664862,1716291057891,-595.34,0.00033205,6]
[327664863,1716291057900,-565.2,0.00033205,6]
[327664864,1716291057909,-500.0,0.00033205,6]
[327664865,1716291057919,-960.27,0.00033205,6]
[327664866,1716291057928,-500.0,0.00033205,6]
[327664867,1716291057937,-558.22,0.00033205,6]
[327664868,1716291057947,-500.0,0.00033205,6]
[327664869,1716291057956,-593.51,0.00033205,6]
[327664870,1716291057965,-543.06,0.00033205,6]
[327664871,1716291057974,-500.0,0.00033205,6]
[327664872,1716291057983,-500.0,0.00033205,6]
[327664873,1716291057993,-500.0,0.00033205,6]
[327664874,1716291058003,-591.98,0.00033205,6]
[327664875,1716291058015,-780.47,0.00033205,6]
[327664876,1716291058025,-500.0,0.00033205,6]
[327664877,1716291058035,-1355.07,0.00033205,6]
[327664878,1716291058045,-1055.33,0.00033205,6]
[327664879,1716291058123,-500.0,0.00033205,6]
[327664880,1716291058132,-500.0,0.00033205,6]
[327664881,1716291058143,-500.0,0.00033205,6]
[327664882,1716291058153,-1238.66,0.00033205,6]
[327664883,1716291058163,-500.0,0.00033205,6]
[327664884,1716291058172,-831.32,0.00033205,6]
[327664885,1716291058181,-564.63,0.00033205,6]
[327664886,1716291058191,-525.93,0.00033205,6]
[327664887,1716291058200,-500.0,0.00033205,6]
[327664888,1716291058209,-500.0,0.00033205,6]
[327664889,1716291058219,-500.0,0.00033205,6]
[327664890,1716291058230,-500.0,0.00033205,6]
[327664891,1716291058239,-720.6,0.00033205,6]
[327664892,1716291058248,-660.49,0.00033205,6]
[327664893,1716291058261,-614.32,0.00033205,6]
[327664894,1716291058271,-578.04,0.00033205,6]
[327664895,1716291058280,-500.0,0.00033205,6]
[327664896,1716291058289,-669.57,0.00033205,6]
[327664897,1716291058298,-599.25,0.00033205,6]
[327664898,1716291058307,-607.52,0.00033205,6]
[327664899,1716291058318,-750.72,0.00033205,6]
[327664900,1716291058327,-885.86,0.00033205,6]
[327664901,1716291058338,-1040.58,0.00033205,6]
[327664902,1716291058348,-500.19,0.00033205,6]
[327664903,1716291058359,-500.0,0.00033205,6]
[327664904,1716291058369,-765.93,0.00033205,6]
[327664905,1716291058378,-1133.57,0.00033205,6]
[327664906,1716291058389,-1214.5,0.00033205,6]
[327664907,1716291058401,-500.0,0.00033205,6]
[327664908,1716291058411,-748.88,0.00033205,6]
[327664909,1716291058420,-500.0,0.00033205,6]
[327664910,1716291058430,-779.8,0.00033205,6]
[327664911,1716291058442,-654.02,0.00033205,6]
[327664912,1716291058451,-1169.05,0.00033205,6]
[327664913,1716291058461,-1469.08,0.00033205,6]
[327664914,1716291058470,-713.85,0.00033205,6]
[327664915,1716291058479,-500.0,0.00033205,6]
[327664916,1716291058488,-500.0,0.00033205,6]
[327664917,1716291058497,-1050.85,0.00033205,6]
[327664918,1716291058506,-500.0,0.00033205,6]
[327664919,1716291058516,-1701.94,0.00033205,6]
[327664920,1716291058525,-1325.12,0.00033205,6]
[327664921,1716291058534,-500.0,0.00033205,6]
[327664922,1716291058543,-871.49,0.00033205,6]
[327664923,1716291058552,-500.0,0.00033205,6]
[327664924,1716291058562,-1191.66,0.00033205,6]
[327664925,1716291058570,-500.0,0.00033205,6]
[327664926,1716291058579,-648.33,0.00033205,6]
[327664927,1716291058589,-500.0,0.00033205,6]
[327664928,1716291058598,-500.0,0.00033205,6]
[327664929,1716291058607,-694.28,0.00033205,6]
[327664930,1716291058622,-1193.96,0.00033205,6]
[327664931,1716291058631,-1424.94,0.00033205,6]
[327664932,1716291058640,-987.24,0.00033205,6]
[327664933,1716291058649,-512.08,0.00033205,6]
[327664934,1716291058660,-500.0,0.00033205,6]
[327664935,1716291058670,-1109.15,0.00033205,6]
[327664936,1716291058679,-739.04,0.00033205,6]
[327664937,1716291058690,-500.0,0.00033205,6]
[327664938,1716291058699,-500.0,0.00033205,6]
[327664939,1716291058709,-500.0,0.00033205,6]
[327664940,1716291058718,-922.27,0.00033205,6]
[327664941,1716291058728,-1112.34,0.00033205,6]
[327664942,1716291058737,-906.78,0.00033205,6]
[327664943,1716291058747,-886.11,0.00033205,6]
[327664944,1716291058759,-633.22,0.00033205,6]
[327664945,1716291058768,-968.42,0.00033205,6]
[327664946,1716291058777,-666.45,0.00033205,6]
[327664947,1716291058787,-1278.63,0.00033205,6]
[327664948,1716291058797,-500.0,0.00033205,6]
[327664949,1716291058806,-927.71,0.00033205,6]
[327664950,1716291058815,-522.59,0.00033205,6]
[327664951,1716291058825,-1441.81,0.00033205,6]
[327664952,1716291058834,-1041.41,0.00033205,6]
[327664953,1716291058844,-510.96,0.00033205,6]
[327664954,1716291058853,-567.27,0.00033205,6]
[327664955,1716291058863,-1095.24,0.00033205,6]
[327664956,1716291058872,-500.0,0.00033205,6]
[327664957,1716291058881,-687.83,0.00033205,6]
[327664958,1716291058890,-500.0,0.00033205,6]
[327664959,1716291058899,-649.21,0.00033205,6]
[327664960,1716291058908,-913.97,0.00033205,6]
[327664961,1716291058917,-500.0,0.00033205,6]
[327664962,1716291058926,-2023.13,0.00033205,6]
[327664963,1716291058935,-1202.56,0.00033205,6]
[327664964,1716291058944,-1032.05,0.00033205,6]
[327664965,1716291058953,-500.0,0.00033205,6]
[327664966,1716291058962,-318.28,0.00033205,6]
[327664967,1716291058971,-879.65,0.00033205,6]
[327664968,1716291058979,-1202.36,0.00033205,6]
[327664969,1716291058988,-2019.13,0.00033205,6]
[327664970,1716291058998,-413.07,0.00033205,6]
[327664971,1716291059008,-1118.5,0.00033205,6]
[327664972,1716291059018,-1678.3,0.00033205,6]
[327664973,1716291059027,-567.92,0.00033205,6]
[327664974,1716291059036,-462.48,0.00033205,6]
[327664975,1716291059046,-1701.58,0.00033205,6]
[327664976,1716291059055,-158.62,0.00033205,6]
[327664977,1716291059065,-3042.77,0.00033205,6]
[327664978,1716291059074,-500.0,0.00033205,6]
[327664979,1716291059083,-500.0,0.00033205,6]
[327664980,1716291059094,-422.3,0.00033205,6]
[327664981,1716291059104,-799.4,0.00033205,6]
[327664982,1716291059113,-500.0,0.00033205,6]
[327664983,1716291059123,-1387.86,0.00033205,6]
[327664984,1716291059132,-1032.3,0.00033205,6]
[327664985,1716291059141,-9918.7,0.00033205,6]
[327664986,1716291059151,-500.0,0.00033205,6]
[327664987,1716291059161,-500.0,0.00033205,6]
[327664988,1716291059171,-1560.23,0.00033205,6]
[327664989,1716291059180,-570.7,0.00033205,6]
[327664990,1716291059190,-500.0,0.00033205,6]
[327664991,1716291059200,-500.0,0.00033205,6]
[327664992,1716291059210,-510.41,0.00033205,6]
[327664993,1716291059220,-500.0,0.00033205,6]
[327664994,1716291059230,-2881.72,0.00033205,6]
[327664995,1716291059241,-1539.47,0.00033205,6]
[327664996,1716291059251,-1230.29,0.00033205,6]
[327664997,1716291059263,-1587.89,0.00033205,6]
[327664998,1716291059272,-827.83,0.00033205,6]
[327664999,1716291059280,-2149.87,0.00033205,6]
[327665000,1716291059290,-500.0,0.00033205,6]
[327665001,1716291059300,-1818.33,0.00033205,6]
[327665002,1716291059308,-1664.96,0.00033205,6]
[327665003,1716291059317,-500.0,0.00033205,6]
[327665004,1716291059326,-10289.26,0.00033205,6]
[327665005,1716291059335,-1393.08,0.00033205,6]
[327665006,1716291059345,-519.10675777,0.00033205,6]
[327665007,1716291059354,-718.55,0.00033205,6]
[327665008,1716291059363,-1382.61,0.00033205,6]
[327665009,1716291059371,-285.34,0.00033205,6]
[327665010,1716291059380,-966.19,0.00033205,6]
[327665011,1716291059389,-2970.16,0.00033205,6]
[327665012,1716291059398,-7073.63,0.00033205,6]
[327665013,1716291059407,-1919.39,0.00033205,6]
[327665014,1716291059417,-802.52,0.00033205,6]
[327665015,1716291059426,-1163.31,0.00033205,6]
[327665016,1716291059435,-1570.45,0.00033205,6]
[327665017,1716291059446,-1744.34,0.00033205,6]
[327665018,1716291059456,-500.0,0.00033205,6]
[327665019,1716291059466,-2152.68,0.00033205,6]
[327665020,1716291059475,-929.42,0.00033205,6]
[327665021,1716291059484,-500.0,0.00033205,6]
[327665022,1716291059494,-8045.38,0.00033205,6]
[327665023,1716291059503,-202.39,0.00033205,6]
[327665024,1716291059514,-3088.9,0.00033205,6]
[327665025,1716291059524,-1331.09,0.00033205,6]
[327665026,1716291059533,-1060.15,0.00033205,6]
[327665027,1716291059542,-500.0,0.00033205,6]
[327665028,1716291059551,-1146.57,0.00033205,6]
[327665029,1716291059561,-2303.35,0.00033205,6]
[327665030,1716291059570,-1223.19,0.00033205,6]
[327665031,1716291059580,-500.0,0.00033205,6]
[327665032,1716291059590,-500.0,0.00033205,6]
[327665033,1716291059599,-500.0,0.00033205,6]
[327665034,1716291059608,-500.0,0.00033205,6]
[327665035,1716291059620,-676.3,0.00033205,6]
[327665036,1716291059632,-4145.22,0.00033205,6]
[327665037,1716291059642,-2570.19,0.00033205,6]
[327665038,1716291059652,-626.31,0.00033205,6]
[327665039,1716291059662,-488.37,0.00033205,6]
[327665040,1716291059671,-5364.66,0.00033205,6]
[327665041,1716291059681,-6984.37,0.00033205,6]
[327665042,1716291059690,-1599.09,0.00033205,6]
[327665043,1716291059704,-500.0,0.00033205,6]
[327665044,1716291059713,-942.14,0.00033205,6]
[327665045,1716291059723,-689.97,0.00033205,6]
[327665046,1716291059733,-3692.28,0.00033205,6]
[327665047,1716291059742,-1418.88,0.00033205,6]
[327665048,1716291059752,-500.0,0.00033205,6]
[327665049,1716291059764,-509.53,0.00033205,6]
[327665050,1716291059773,-6968.22,0.00033205,6]
[327665051,1716291059782,-500.0,0.00033205,6]
[327665052,1716291059792,-500.0,0.00033205,6]
[327665053,1716291059801,-500.0,0.00033205,6]
[327665054,1716291059811,-500.0,0.00033205,6]
[327665055,1716291059820,-500.0,0.00033205,6]
[327665056,1716291059830,-3478.64,0.00033205,6]
[327665057,1716291059839,-5325.1,0.00033205,6]
[327665058,1716291059848,-1000.13,0.00033205,6]
[327665059,1716291059857,-686.54,0.00033205,6]
[327665060,1716291059866,-4452.95,0.00033205,6]
[327665061,1716291059876,-1958.88,0.00033205,6]
[327665062,1716291059885,-12875.53,0.00033205,6]
[327665063,1716291059894,-3223.22,0.00033205,6]
[327665064,1716291059904,-507.68,0.00033205,6]
[327665065,1716291059913,-2260.18,0.00033205,6]
[327665066,1716291059922,-802.75,0.00033205,6]
[327665067,1716291059931,-500.0,0.00033205,6]
[327665068,1716291059940,-1830.99,0.00033205,6]
[327665069,1716291059949,-1094.45,0.00033205,6]
[327665070,1716291059958,-500.0,0.00033205,6]
[327665071,1716291059967,-1349.13,0.00033205,6]
[327665072,1716291059976,-500.0,0.00033205,6]
[327665073,1716291059985,-3067.89,0.00033205,6]
[327665074,1716291059994,-2569.11,0.00033205,6]
[327665075,1716291060003,-513.03,0.00033205,6]
[327665076,1716291060016,-500.0,0.00033205,6]
[327665077,1716291060025,-1618.62,0.00033205,6]
[327665078,1716291060034,-518.15,0.00033205,6]
[327665079,1716291060043,-500.0,0.00033205,6]
[327665080,1716291060052,-1596.78,0.00033205,6]
[327665081,1716291060061,-1131.22,0.00033205,6]
[327665082,1716291060071,-961.79,0.00033205,6]
[327665083,1716291060080,-686.26,0.00033205,6]
[327665084,1716291060089,-500.0,0.00033205,6]
[327665085,1716291060098,-500.0,0.00033205,6]
[327665086,1716291060108,-663.94,0.00033205,6]
[327665087,1716291060117,-2042.42,0.00033205,6]
[327665088,1716291060126,-3508.44,0.00033205,6]
[327665089,1716291060136,-2559.66,0.00033205,6]
[327665090,1716291060146,-2144.2,0.00033205,6]
[327665091,1716291060155,-3088.3,0.00033205,6]
[327665092,1716291060164,-500.0,0.00033205,6]
[327665093,1716291060174,-541.58,0.00033205,6]
[327665094,1716291060184,-261.69,0.00033205,6]
[327665095,1716291060193,-857.6,0.00033205,6]
[327665096,1716291060202,-2771.03,0.00033205,6]
[327665097,1716291060212,-500.0,0.00033205,6]
[327665098,1716291060221,-722.94,0.00033205,6]
[327665099,1716291060231,-976.39,0.00033205,6]
[327665100,1716291060240,-20774.01,0.00033205,6]
[327665101,1716291060250,-517.4,0.00033205,6]
[327665102,1716291060261,-2952.08,0.00033205,6]
[327665103,1716291060271,-500.0,0.00033205,6]
[327665104,1716291060280,-2359.71,0.00033205,6]
[327665105,1716291060290,-500.0,0.00033205,6]
[327665106,1716291060299,-1971.69,0.00033205,6]
[327665107,1716291060309,-1229.51,0.00033205,6]
[327665108,1716291060319,-1127.28,0.00033205,6]
[327665109,1716291060328,-549.85,0.00033205,6]
[327665110,1716291060339,-1075.86,0.00033205,6]
[327665111,1716291060348,-1806.28,0.00033205,6]
[327665112,1716291060357,-500.0,0.00033205,6]
[327665113,1716291060366,-2374.57,0.00033205,6]
[327665114,1716291060375,-4545.76,0.00033205,6]
[327665115,1716291060385,-2269.94,0.00033205,6]
[327665116,1716291060394,-3166.66,0.00033205,6]
[327665117,1716291060404,-500.0,0.00033205,6]
[327665118,1716291060413,-500.0,0.00033205,6]
[327665119,1716291060423,-2075.28,0.00033205,6]
[327665120,1716291060432,-514.28,0.00033205,6]
[327665121,1716291060442,-52301.07,0.00033205,6]
[327665122,1716291060451,-1796.5,0.00033205,6]
[327665123,1716291060460,-500.0,0.00033205,6]
[327665124,1716291060469,-500.0,0.00033205,6]
[327665125,1716291060479,-5522.34,0.00033205,6]
[327665126,1716291060488,-500.0,0.00033205,6]
[327665127,1716291060497,-590.89,0.00033205,6]
[327665128,1716291060508,-500.0,0.00033205,6]
[327665129,1716291060517,-540.38709884,0.00033205,6]